[Event "Titled Tuesday Blitz August 15 Late 2023"]
[White "olackza"]
[Black "Yeritsyan, Hayk"]
[BlackFideId "13307320"]
[WhiteElo "2208"]
[BlackElo "2471"]
[Result "0-1"]
[Round "4"]
[TimeControl "180+1"]
[Date "2023.08.15"]
[WhiteClock "0:00:13"]
[BlackClock "0:00:15"]
[Board "136"]

1. e4 {[%clk 0:03:00]}  c6 {[%clk 0:02:59]} 2. d4 {[%clk 0:03:00]}  d5 {[%clk 0:02:59]} 3. Nc3 {[%clk 0:03:01]}  dxe4 {[%clk 0:02:59]} 4. Nxe4 {[%clk 0:03:02]}  Nd7 {[%clk 0:02:59]} 5. Nf3 {[%clk 0:03:02]}  Ngf6 {[%clk 0:02:59]} 6. Ng3 {[%clk 0:03:02]}  e6 {[%clk 0:02:59]} 7. Be3 {[%clk 0:02:58]}  Bd6 {[%clk 0:02:59]} 8. Qd2 {[%clk 0:02:56]}  Qc7 {[%clk 0:02:59]} 9. O-O-O {[%clk 0:02:51]}  O-O {[%clk 0:02:58]} 10. Bd3 {[%clk 0:02:46]}  c5 {[%clk 0:02:55]} 11. dxc5 {[%clk 0:02:39]}  Bxc5 {[%clk 0:02:42]} 12. Ng5 {[%clk 0:01:49]}  Bxe3 {[%clk 0:02:39]} 13. Qxe3 {[%clk 0:01:42]}  Ne5 {[%clk 0:02:29]} 14. N3e4 {[%clk 0:01:22]}  Nxd3+ {[%clk 0:02:18]} 15. Rxd3 {[%clk 0:01:14]}  Nd5 {[%clk 0:02:12]} 16. Qh3 {[%clk 0:01:01]}  Qf4+ {[%clk 0:01:55]} 17. Kb1 {[%clk 0:00:56]}  h6 {[%clk 0:01:54]} 18. Rf3 {[%clk 0:00:47]}  e5 {[%clk 0:01:41]} 19. Qh5 {[%clk 0:00:38]}  Bg4 {[%clk 0:01:39]} 20. Rxf4 {[%clk 0:00:30]}  Bxh5 {[%clk 0:01:38]} 21. Rh4 {[%clk 0:00:29]}  Bg6 {[%clk 0:01:23]} 22. Nf3 {[%clk 0:00:27]}  f6 {[%clk 0:01:18]} 23. Ng3 {[%clk 0:00:21]}  Rac8 {[%clk 0:01:15]} 24. Rc1 {[%clk 0:00:20]}  Rfd8 {[%clk 0:01:13]} 25. a3 {[%clk 0:00:19]}  Nf4 {[%clk 0:01:12]} 26. Rg4 {[%clk 0:00:16]}  Kf7 {[%clk 0:01:05]} 27. Ne1 {[%clk 0:00:12]}  Rd2 {[%clk 0:00:58]} 28. Nf1 {[%clk 0:00:10]}  Rxf2 {[%clk 0:00:57]} 29. Ne3 {[%clk 0:00:09]}  Re2 {[%clk 0:00:52]} 30. Rg3 {[%clk 0:00:04]}  Be4 {[%clk 0:00:43]} 31. h4 {[%clk 0:00:04]}  g5 {[%clk 0:00:42]} 32. hxg5 {[%clk 0:00:03]}  hxg5 {[%clk 0:00:43]} 33. Rg4 {[%clk 0:00:02]}  Ke6 {[%clk 0:00:36]} 34. Nf1 {[%clk 0:00:02]}  Bxg2 {[%clk 0:00:34]} 35. Ng3 {[%clk 0:00:02]}  Rf2 {[%clk 0:00:28]} 36. Nd3 {[%clk 0:00:01]}  Nxd3 {[%clk 0:00:26]} 37. cxd3 {[%clk 0:00:02]}  Rxc1+ {[%clk 0:00:24]} 38. Kxc1 {[%clk 0:00:02]}  Bh3 {[%clk 0:00:18]} 39. Rb4 {[%clk 0:00:02]}  b6 {[%clk 0:00:15]} 40. Ne4 {[%clk 0:00:03]}  Bf5 {[%clk 0:00:14]} 41. Nxf2 {[%clk 0:00:03]}  g4 {[%clk 0:00:15]} 42. Rb5 {[%clk 0:00:02]}  g3 {[%clk 0:00:15]} 43. Ne4 {[%clk 0:00:02]}  Bxe4 {[%clk 0:00:14]} 44. dxe4 {[%clk 0:00:03]}  g2 {[%clk 0:00:14]} 45. Kc2 {[%clk 0:00:03]}  g1=Q {[%clk 0:00:14]} 46. Rb3 {[%clk 0:00:04]}  Qd4 {[%clk 0:00:14]} 47. Rd3 {[%clk 0:00:04]}  Qxe4 {[%clk 0:00:14]} 48. Kd2 {[%clk 0:00:05]}  f5 {[%clk 0:00:15]} 49. Re3 {[%clk 0:00:05]}  Qd4+ {[%clk 0:00:15]} 50. Rd3 {[%clk 0:00:05]}  Qxb2+ {[%clk 0:00:15]} 51. Ke3 {[%clk 0:00:05]}  f4+ {[%clk 0:00:15]} 52. Kf3 {[%clk 0:00:05]}  Qc2 {[%clk 0:00:14]} 53. Rd8 {[%clk 0:00:04]}  Qb3+ {[%clk 0:00:12]} 54. Ke2 {[%clk 0:00:04]}  Qxa3 {[%clk 0:00:11]} 55. Kf2 {[%clk 0:00:04]}  Qc5+ {[%clk 0:00:11]} 56. Ke2 {[%clk 0:00:03]}  Qc4+ {[%clk 0:00:10]} 57. Kf3 {[%clk 0:00:02]}  Qd5+ {[%clk 0:00:09]} 58. Rxd5 {[%clk 0:00:02]}  Kxd5 {[%clk 0:00:10]} 59. Ke2 {[%clk 0:00:02]}  e4 {[%clk 0:00:11]} 60. Kd1 {[%clk 0:00:03]}  b5 {[%clk 0:00:11]} 61. Kd2 {[%clk 0:00:04]}  b4 {[%clk 0:00:12]} 62. Ke1 {[%clk 0:00:04]}  a5 {[%clk 0:00:13]} 63. Kd1 {[%clk 0:00:05]}  a4 {[%clk 0:00:14]} 64. Kc1 {[%clk 0:00:06]}  Kc4 {[%clk 0:00:14]} 65. Kb1 {[%clk 0:00:07]}  e3 {[%clk 0:00:15]} 66. Ka2 {[%clk 0:00:08]}  f3 {[%clk 0:00:15]} 67. Kb2 {[%clk 0:00:09]}  f2 {[%clk 0:00:15]} 68. Ka2 {[%clk 0:00:10]}  e2 {[%clk 0:00:16]} 69. Kb2 {[%clk 0:00:11]}  Kd3 {[%clk 0:00:16]} 70. Ka2 {[%clk 0:00:12]}  Kc2 {[%clk 0:00:16]} 71. Ka1 {[%clk 0:00:12]}  e1=Q+ {[%clk 0:00:15]} 72. Ka2 {[%clk 0:00:13]}  Qb1# {[%clk 0:00:15]} 0-1


[Site "https://www.chess.com"]

[Event "Titled Tuesday Blitz August 15 Late 2023"]
[White "Petersson, Kjell"]
[Black "Yang, Kevin"]
[WhiteFideId "1705148"]
[BlackFideId "30908485"]
[WhiteElo "2189"]
[BlackElo "2465"]
[Result "0-1"]
[Round "4"]
[TimeControl "180+1"]
[Date "2023.08.15"]
[WhiteClock "0:00:00"]
[BlackClock "0:00:15"]
[Board "137"]

1. d4 {[%clk 0:03:00]}  Nf6 {[%clk 0:02:57]} 2. Bf4 {[%clk 0:03:01]}  e6 {[%clk 0:02:55]} 3. e3 {[%clk 0:03:01]}  c5 {[%clk 0:02:55]} 4. Nf3 {[%clk 0:02:56]}  b6 {[%clk 0:02:55]} 5. Nbd2 {[%clk 0:02:51]}  d5 {[%clk 0:02:50]} 6. c3 {[%clk 0:02:49]}  Be7 {[%clk 0:02:47]} 7. Ne5 {[%clk 0:02:44]}  O-O {[%clk 0:02:46]} 8. Bd3 {[%clk 0:02:37]}  Nfd7 {[%clk 0:02:40]} 9. Qh5 {[%clk 0:02:16]}  g6 {[%clk 0:02:17]} 10. Nxg6 {[%clk 0:02:03]}  fxg6 {[%clk 0:02:14]} 11. Bxg6 {[%clk 0:01:55]}  Nf6 {[%clk 0:02:06]} 12. Qg5 {[%clk 0:01:43]}  hxg6 {[%clk 0:01:58]} 13. Qxg6+ {[%clk 0:01:43]}  Kh8 {[%clk 0:01:58]} 14. Be5 {[%clk 0:01:33]}  Qe8 {[%clk 0:01:46]} 15. Qh6+ {[%clk 0:01:29]}  Kg8 {[%clk 0:01:45]} 16. Qg5+ {[%clk 0:01:16]}  Kh7 {[%clk 0:01:42]} 17. Nf3 {[%clk 0:00:54]}  Qg6 {[%clk 0:01:32]} 18. Qh4+ {[%clk 0:00:49]}  Kg8 {[%clk 0:01:32]} 19. O-O-O {[%clk 0:00:33]}  Nc6 {[%clk 0:01:28]} 20. g4 {[%clk 0:00:17]}  Ne4 {[%clk 0:00:56]} 21. Qh8+ {[%clk 0:00:12]}  Kf7 {[%clk 0:00:56]} 22. Qh3 {[%clk 0:00:08]}  Ba6 {[%clk 0:00:40]} 23. Bf4 {[%clk 0:00:07]}  Ke8 {[%clk 0:00:39]} 24. Rhg1 {[%clk 0:00:03]}  Nxf2 {[%clk 0:00:37]} 25. Qg2 {[%clk 0:00:03]}  Nxd1 {[%clk 0:00:35]} 26. Rxd1 {[%clk 0:00:04]}  Qe4 {[%clk 0:00:29]} 27. h4 {[%clk 0:00:04]}  Kd7 {[%clk 0:00:24]} 28. h5 {[%clk 0:00:04]}  Rxf4 {[%clk 0:00:23]} 29. exf4 {[%clk 0:00:04]}  Qxf4+ {[%clk 0:00:23]} 30. Kb1 {[%clk 0:00:04]}  Rg8 {[%clk 0:00:21]} 31. g5 {[%clk 0:00:04]}  Bxg5 {[%clk 0:00:17]} 32. Qe2 {[%clk 0:00:00]}  Bxe2 {[%clk 0:00:15]} 0-1


[Site "https://www.chess.com"]

[Event "Titled Tuesday Blitz August 15 Late 2023"]
[White "brm72"]
[Black "Sava, Christiansen-Danut-Eugen"]
[BlackFideId "1210114"]
[WhiteElo "2462"]
[BlackElo "2184"]
[Result "1-0"]
[Round "4"]
[TimeControl "180+1"]
[Date "2023.08.15"]
[WhiteClock "0:00:06"]
[BlackClock "0:00:00"]
[Board "138"]

1. e4 {[%clk 0:03:00]}  e6 {[%clk 0:02:54]} 2. d4 {[%clk 0:03:00]}  d5 {[%clk 0:02:54]} 3. e5 {[%clk 0:02:59]}  c5 {[%clk 0:02:52]} 4. c3 {[%clk 0:02:59]}  Nc6 {[%clk 0:02:52]} 5. Nf3 {[%clk 0:02:59]}  cxd4 {[%clk 0:02:51]} 6. cxd4 {[%clk 0:02:58]}  Nge7 {[%clk 0:02:52]} 7. Nc3 {[%clk 0:02:56]}  Nf5 {[%clk 0:02:49]} 8. a3 {[%clk 0:02:43]}  Be7 {[%clk 0:02:47]} 9. Be2 {[%clk 0:02:42]}  O-O {[%clk 0:02:47]} 10. O-O {[%clk 0:02:42]}  Bd7 {[%clk 0:02:27]} 11. Be3 {[%clk 0:02:39]}  f6 {[%clk 0:02:15]} 12. exf6 {[%clk 0:02:33]}  Bxf6 {[%clk 0:02:16]} 13. Rc1 {[%clk 0:02:28]}  Qe7 {[%clk 0:01:45]} 14. Re1 {[%clk 0:02:20]}  Nxe3 {[%clk 0:01:27]} 15. fxe3 {[%clk 0:02:17]}  Bg5 {[%clk 0:01:28]} 16. Bd3 {[%clk 0:02:05]}  Bh6 {[%clk 0:01:23]} 17. Rc2 {[%clk 0:01:43]}  Rf7 {[%clk 0:01:17]} 18. e4 {[%clk 0:01:40]}  dxe4 {[%clk 0:01:13]} 19. Bxe4 {[%clk 0:01:41]}  Raf8 {[%clk 0:01:12]} 20. d5 {[%clk 0:01:39]}  Nd8 {[%clk 0:00:43]} 21. Ne5 {[%clk 0:01:28]}  Rf4 {[%clk 0:00:31]} 22. g3 {[%clk 0:01:16]}  R4f6 {[%clk 0:00:12]} 23. Qd3 {[%clk 0:01:11]}  g6 {[%clk 0:00:09]} 24. Kg2 {[%clk 0:01:06]}  Bg7 {[%clk 0:00:08]} 25. Nxd7 {[%clk 0:00:48]}  Qxd7 {[%clk 0:00:08]} 26. dxe6 {[%clk 0:00:48]}  Qe7 {[%clk 0:00:04]} 27. Nd5 {[%clk 0:00:47]}  Qxe6 {[%clk 0:00:03]} 28. Nxf6+ {[%clk 0:00:46]}  Qxf6 {[%clk 0:00:04]} 29. Bd5+ {[%clk 0:00:45]}  Kh8 {[%clk 0:00:03]} 30. Rf1 {[%clk 0:00:45]}  Qd6 {[%clk 0:00:02]} 31. Rxf8+ {[%clk 0:00:44]}  Bxf8 {[%clk 0:00:02]} 32. Qe4 {[%clk 0:00:25]}  h6 {[%clk 0:00:01]} 33. b4 {[%clk 0:00:23]}  Kh7 {[%clk 0:00:02]} 34. Bxb7 {[%clk 0:00:18]}  Bg7 {[%clk 0:00:02]} 35. Bd5 {[%clk 0:00:18]}  h5 {[%clk 0:00:02]} 36. h4 {[%clk 0:00:17]}  Qd7 {[%clk 0:00:02]} 37. Rf2 {[%clk 0:00:17]}  Qd6 {[%clk 0:00:02]} 38. Rc2 {[%clk 0:00:14]}  Kh6 {[%clk 0:00:03]} 39. a4 {[%clk 0:00:14]}  Kh7 {[%clk 0:00:03]} 40. b5 {[%clk 0:00:14]}  Qf6 {[%clk 0:00:03]} 41. Qf4 {[%clk 0:00:13]}  Qa1 {[%clk 0:00:02]} 42. Qc7 {[%clk 0:00:12]}  Qxa4 {[%clk 0:00:02]} 43. Rf2 {[%clk 0:00:07]}  Qxb5 {[%clk 0:00:01]} 44. Qxd8 {[%clk 0:00:07]}  Qb6 {[%clk 0:00:01]} 45. Qxb6 {[%clk 0:00:07]}  axb6 {[%clk 0:00:02]} 46. Bc4 {[%clk 0:00:08]}  Bd4 {[%clk 0:00:01]} 47. Rf7+ {[%clk 0:00:07]}  Kh6 {[%clk 0:00:01]} 48. Rf8 {[%clk 0:00:07]}  Bg7 {[%clk 0:00:01]} 49. Rb8 {[%clk 0:00:06]}  Bd4 {[%clk 0:00:01]} 50. Kf3 {[%clk 0:00:07]}  Kg7 {[%clk 0:00:01]} 51. Ke4 {[%clk 0:00:06]}  Bc5 {[%clk 0:00:02]} 52. Rd8 {[%clk 0:00:05]}  Kf6 {[%clk 0:00:00]} 53. Rd3 {[%clk 0:00:06]} 1-0


[Site "https://www.chess.com"]

[Event "Titled Tuesday Blitz August 15 Late 2023"]
[White "Jakic, Ivan"]
[Black "Quispe Santacruz, Javier"]
[WhiteFideId "14504901"]
[BlackFideId "3800920"]
[WhiteElo "2448"]
[BlackElo "2171"]
[Result "1-0"]
[Round "4"]
[TimeControl "180+1"]
[Date "2023.08.15"]
[WhiteClock "0:01:26"]
[BlackClock "0:00:00"]
[Board "140"]

1. e4 {[%clk 0:03:00]}  c5 {[%clk 0:02:52]} 2. Nf3 {[%clk 0:02:59]}  d6 {[%clk 0:02:52]} 3. d4 {[%clk 0:03:00]}  cxd4 {[%clk 0:02:52]} 4. Qxd4 {[%clk 0:03:01]}  Nc6 {[%clk 0:02:51]} 5. Bb5 {[%clk 0:03:01]}  Bd7 {[%clk 0:02:51]} 6. Bxc6 {[%clk 0:03:01]}  Bxc6 {[%clk 0:02:52]} 7. Nc3 {[%clk 0:03:01]}  Nf6 {[%clk 0:02:51]} 8. Bg5 {[%clk 0:03:02]}  e6 {[%clk 0:02:52]} 9. Qd3 {[%clk 0:03:02]}  Be7 {[%clk 0:02:51]} 10. Nd4 {[%clk 0:03:02]}  Qc7 {[%clk 0:02:50]} 11. f4 {[%clk 0:03:02]}  Rc8 {[%clk 0:02:48]} 12. O-O-O {[%clk 0:03:02]}  a6 {[%clk 0:02:48]} 13. Kb1 {[%clk 0:03:00]}  b5 {[%clk 0:02:47]} 14. Nxc6 {[%clk 0:02:57]}  Qxc6 {[%clk 0:02:47]} 15. e5 {[%clk 0:02:58]}  dxe5 {[%clk 0:02:44]} 16. fxe5 {[%clk 0:02:58]}  Nd7 {[%clk 0:02:23]} 17. Bxe7 {[%clk 0:02:49]}  Kxe7 {[%clk 0:02:24]} 18. Qg3 {[%clk 0:02:40]}  b4 {[%clk 0:02:20]} 19. Qg5+ {[%clk 0:02:31]}  Kf8 {[%clk 0:02:16]} 20. Rd6 {[%clk 0:02:23]}  Qc7 {[%clk 0:01:58]} 21. Rhd1 {[%clk 0:02:18]}  h6 {[%clk 0:00:57]} 22. Qh4 {[%clk 0:02:05]}  g5 {[%clk 0:00:49]} 23. Qxb4 {[%clk 0:02:04]}  Nc5 {[%clk 0:00:23]} 24. Ne4 {[%clk 0:02:02]}  Kg7 {[%clk 0:00:20]} 25. Nxc5 {[%clk 0:01:44]}  Qxc5 {[%clk 0:00:21]} 26. Qe4 {[%clk 0:01:44]}  Rc7 {[%clk 0:00:15]} 27. h4 {[%clk 0:01:43]}  Rb8 {[%clk 0:00:13]} 28. b3 {[%clk 0:01:41]}  a5 {[%clk 0:00:13]} 29. hxg5 {[%clk 0:01:40]}  hxg5 {[%clk 0:00:13]} 30. R6d2 {[%clk 0:01:32]}  Rb4 {[%clk 0:00:12]} 31. Qf3 {[%clk 0:01:27]}  a4 {[%clk 0:00:00]} 32. Qf6+ {[%clk 0:01:26]} 1-0


[Site "https://www.chess.com"]

[Event "Titled Tuesday Blitz August 15 Late 2023"]
[White "Ottosen, David"]
[Black "ExchangeAB"]
[WhiteFideId "2603080"]
[WhiteElo "2126"]
[BlackElo "2442"]
[Result "0-1"]
[Round "4"]
[TimeControl "180+1"]
[Date "2023.08.15"]
[WhiteClock "0:01:40"]
[BlackClock "0:01:10"]
[Board "141"]

1. e4 {[%clk 0:03:00]}  c6 {[%clk 0:02:58]} 2. d4 {[%clk 0:03:00]}  d5 {[%clk 0:02:59]} 3. e5 {[%clk 0:03:00]}  Bf5 {[%clk 0:02:58]} 4. Nf3 {[%clk 0:03:01]}  e6 {[%clk 0:02:57]} 5. Be2 {[%clk 0:03:01]}  Ne7 {[%clk 0:02:57]} 6. O-O {[%clk 0:03:01]}  h6 {[%clk 0:02:56]} 7. Re1 {[%clk 0:03:02]}  Nd7 {[%clk 0:02:55]} 8. h3 {[%clk 0:02:56]}  g5 {[%clk 0:02:52]} 9. Nh2 {[%clk 0:02:53]}  Bg7 {[%clk 0:02:52]} 10. c3 {[%clk 0:02:52]}  O-O {[%clk 0:02:51]} 11. Nd2 {[%clk 0:02:50]}  Qc7 {[%clk 0:02:52]} 12. Ndf1 {[%clk 0:02:50]}  c5 {[%clk 0:02:52]} 13. Ng3 {[%clk 0:02:48]}  Bg6 {[%clk 0:02:52]} 14. Bh5 {[%clk 0:02:46]}  cxd4 {[%clk 0:02:52]} 15. cxd4 {[%clk 0:02:46]}  Rac8 {[%clk 0:02:49]} 16. Be3 {[%clk 0:02:46]}  Qc2 {[%clk 0:02:47]} 17. Bxg6 {[%clk 0:02:45]}  Nxg6 {[%clk 0:02:47]} 18. Qh5 {[%clk 0:02:43]}  Qxb2 {[%clk 0:02:42]} 19. Ng4 {[%clk 0:02:43]}  f5 {[%clk 0:01:26]} 20. Nxh6+ {[%clk 0:02:42]}  Bxh6 {[%clk 0:01:26]} 21. Qxg6+ {[%clk 0:02:34]}  Bg7 {[%clk 0:01:26]} 22. Nh5 {[%clk 0:02:25]}  Rf7 {[%clk 0:01:25]} 23. Bxg5 {[%clk 0:02:20]}  Nf8 {[%clk 0:01:22]} 24. Nf6+ {[%clk 0:02:05]}  Rxf6 {[%clk 0:01:21]} 25. Qh5 {[%clk 0:02:02]}  Rf7 {[%clk 0:01:18]} 26. Rab1 {[%clk 0:01:59]}  Qxd4 {[%clk 0:01:17]} 27. Bf6 {[%clk 0:01:50]}  Bxf6 {[%clk 0:01:11]} 28. exf6 {[%clk 0:01:50]}  Qxf6 {[%clk 0:01:12]} 29. Re3 {[%clk 0:01:40]}  Rg7 {[%clk 0:01:10]} 0-1


[Site "https://www.chess.com"]

[Event "Titled Tuesday Blitz August 15 Late 2023"]
[White "Kubatko, Ivan"]
[Black "Joubert, Dantelle"]
[WhiteFideId "24111473"]
[BlackFideId "14310813"]
[WhiteElo "2441"]
[BlackElo "2073"]
[Result "1-0"]
[Round "4"]
[TimeControl "180+1"]
[Date "2023.08.15"]
[WhiteClock "0:00:03"]
[BlackClock "0:00:00"]
[Board "142"]

1. e4 {[%clk 0:03:00]}  c5 {[%clk 0:02:59]} 2. c3 {[%clk 0:02:57]}  g6 {[%clk 0:02:57]} 3. d4 {[%clk 0:02:56]}  cxd4 {[%clk 0:02:58]} 4. cxd4 {[%clk 0:02:57]}  d5 {[%clk 0:02:58]} 5. exd5 {[%clk 0:02:58]}  Nf6 {[%clk 0:02:57]} 6. Nc3 {[%clk 0:02:58]}  Bg7 {[%clk 0:02:55]} 7. Qb3 {[%clk 0:02:45]}  O-O {[%clk 0:02:39]} 8. g3 {[%clk 0:02:44]}  Nbd7 {[%clk 0:02:19]} 9. a4 {[%clk 0:02:42]}  Nb6 {[%clk 0:02:16]} 10. Bg2 {[%clk 0:02:39]}  e6 {[%clk 0:02:08]} 11. Nf3 {[%clk 0:02:21]}  Nfxd5 {[%clk 0:02:04]} 12. O-O {[%clk 0:02:21]}  Nxc3 {[%clk 0:01:53]} 13. bxc3 {[%clk 0:02:20]}  Qc7 {[%clk 0:01:48]} 14. Bf4 {[%clk 0:01:58]}  Qc4 {[%clk 0:01:43]} 15. Qxc4 {[%clk 0:01:22]}  Nxc4 {[%clk 0:01:34]} 16. Rfb1 {[%clk 0:01:21]}  Rd8 {[%clk 0:01:15]} 17. a5 {[%clk 0:01:01]}  Bd7 {[%clk 0:00:19]} 18. Rxb7 {[%clk 0:00:48]}  Bc6 {[%clk 0:00:18]} 19. Rc7 {[%clk 0:00:47]}  Bd5 {[%clk 0:00:16]} 20. Ng5 {[%clk 0:00:42]}  Bxg2 {[%clk 0:00:15]} 21. Kxg2 {[%clk 0:00:37]}  e5 {[%clk 0:00:14]} 22. Rxc4 {[%clk 0:00:25]}  exf4 {[%clk 0:00:14]} 23. gxf4 {[%clk 0:00:26]}  h6 {[%clk 0:00:13]} 24. Nf3 {[%clk 0:00:22]}  Rd5 {[%clk 0:00:13]} 25. Ne5 {[%clk 0:00:22]}  Rb8 {[%clk 0:00:10]} 26. a6 {[%clk 0:00:19]}  Rb2 {[%clk 0:00:09]} 27. Kf3 {[%clk 0:00:18]}  g5 {[%clk 0:00:09]} 28. Nd3 {[%clk 0:00:17]}  Rd2 {[%clk 0:00:08]} 29. Ke3 {[%clk 0:00:17]}  Rc2 {[%clk 0:00:06]} 30. Rb1 {[%clk 0:00:10]}  gxf4+ {[%clk 0:00:05]} 31. Nxf4 {[%clk 0:00:10]}  Rf5 {[%clk 0:00:05]} 32. Rb8+ {[%clk 0:00:09]}  Kh7 {[%clk 0:00:04]} 33. Rb7 {[%clk 0:00:06]}  h5 {[%clk 0:00:00]} 34. Ke4 {[%clk 0:00:03]} 1-0


[Site "https://www.chess.com"]

[Event "Titled Tuesday Blitz August 15 Late 2023"]
[White "KrokerGuy"]
[Black "Curtis, John"]
[BlackFideId "3200256"]
[WhiteElo "2435"]
[BlackElo "2056"]
[Result "1-0"]
[Round "4"]
[TimeControl "180+1"]
[Date "2023.08.15"]
[WhiteClock "0:00:03"]
[BlackClock "0:00:31"]
[Board "143"]

1. e4 {[%clk 0:03:00]}  d5 {[%clk 0:03:00]} 2. exd5 {[%clk 0:03:01]}  Qxd5 {[%clk 0:03:00]} 3. Nc3 {[%clk 0:03:01]}  Qa5 {[%clk 0:03:00]} 4. d4 {[%clk 0:03:02]}  Nf6 {[%clk 0:03:00]} 5. Nf3 {[%clk 0:03:03]}  c6 {[%clk 0:03:00]} 6. Bc4 {[%clk 0:02:59]}  Bg4 {[%clk 0:02:58]} 7. h3 {[%clk 0:02:59]}  Bxf3 {[%clk 0:02:58]} 8. Qxf3 {[%clk 0:03:00]}  e6 {[%clk 0:02:58]} 9. O-O {[%clk 0:02:55]}  Bd6 {[%clk 0:02:52]} 10. Ne4 {[%clk 0:02:39]}  Nxe4 {[%clk 0:02:51]} 11. Qxe4 {[%clk 0:02:40]}  Nd7 {[%clk 0:02:51]} 12. Bd3 {[%clk 0:02:19]}  Nf6 {[%clk 0:02:32]} 13. Qe2 {[%clk 0:02:17]}  Rd8 {[%clk 0:02:28]} 14. c3 {[%clk 0:02:16]}  Qc7 {[%clk 0:02:27]} 15. Bg5 {[%clk 0:02:15]}  Bf4 {[%clk 0:02:23]} 16. Bxf6 {[%clk 0:02:11]}  gxf6 {[%clk 0:02:23]} 17. Qh5 {[%clk 0:02:11]}  c5 {[%clk 0:02:11]} 18. Rfe1 {[%clk 0:02:05]}  Kf8 {[%clk 0:02:06]} 19. g3 {[%clk 0:01:23]}  Bxg3 {[%clk 0:01:57]} 20. Re4 {[%clk 0:00:39]}  Rg8 {[%clk 0:01:07]} 21. Kh1 {[%clk 0:00:24]}  Bxf2 {[%clk 0:01:00]} 22. Qh6+ {[%clk 0:00:19]}  Ke7 {[%clk 0:00:59]} 23. Rf4 {[%clk 0:00:20]}  Rg6 {[%clk 0:00:51]} 24. Bxg6 {[%clk 0:00:18]}  hxg6 {[%clk 0:00:51]} 25. Rxf2 {[%clk 0:00:18]}  Qg3 {[%clk 0:00:50]} 26. Rg2 {[%clk 0:00:15]}  Qf3 {[%clk 0:00:51]} 27. dxc5 {[%clk 0:00:09]}  Rd3 {[%clk 0:00:48]} 28. Qh4 {[%clk 0:00:07]}  Qf5 {[%clk 0:00:46]} 29. Kh2 {[%clk 0:00:02]}  Qe5+ {[%clk 0:00:45]} 30. Kh1 {[%clk 0:00:03]}  Qf5 {[%clk 0:00:46]} 31. Kh2 {[%clk 0:00:01]}  g5 {[%clk 0:00:43]} 32. Qg4 {[%clk 0:00:01]}  Qe5+ {[%clk 0:00:43]} 33. Kh1 {[%clk 0:00:01]}  Re3 {[%clk 0:00:43]} 34. Rag1 {[%clk 0:00:02]}  Qxc5 {[%clk 0:00:40]} 35. Qb4 {[%clk 0:00:01]}  Qxb4 {[%clk 0:00:40]} 36. cxb4 {[%clk 0:00:02]}  Rxh3+ {[%clk 0:00:40]} 37. Rh2 {[%clk 0:00:03]}  Rd3 {[%clk 0:00:39]} 38. Rc1 {[%clk 0:00:03]}  Rd7 {[%clk 0:00:39]} 39. Rhc2 {[%clk 0:00:04]}  f5 {[%clk 0:00:38]} 40. Rc7 {[%clk 0:00:03]}  e5 {[%clk 0:00:38]} 41. Rxd7+ {[%clk 0:00:03]}  Kxd7 {[%clk 0:00:38]} 42. Kg2 {[%clk 0:00:04]}  e4 {[%clk 0:00:38]} 43. Rc5 {[%clk 0:00:03]}  Ke6 {[%clk 0:00:36]} 44. Rc7 {[%clk 0:00:04]}  f4 {[%clk 0:00:35]} 45. Rxb7 {[%clk 0:00:03]}  g4 {[%clk 0:00:34]} 46. Kf1 {[%clk 0:00:04]}  e3 {[%clk 0:00:31]} 47. Ke2 {[%clk 0:00:04]}  f5 {[%clk 0:00:30]} 48. Rxa7 {[%clk 0:00:04]}  Ke5 {[%clk 0:00:29]} 49. Re7+ {[%clk 0:00:03]}  Kf6 {[%clk 0:00:30]} 50. Re8 {[%clk 0:00:03]}  g3 {[%clk 0:00:29]} 51. Kf3 {[%clk 0:00:03]}  e2 {[%clk 0:00:28]} 52. Rxe2 {[%clk 0:00:03]}  Kg5 {[%clk 0:00:28]} 53. b5 {[%clk 0:00:02]}  Kf6 {[%clk 0:00:27]} 54. b6 {[%clk 0:00:02]}  Kg6 {[%clk 0:00:27]} 55. b7 {[%clk 0:00:03]}  Kg5 {[%clk 0:00:28]} 56. b8=Q {[%clk 0:00:03]}  Kf6 {[%clk 0:00:29]} 57. Qf8+ {[%clk 0:00:04]}  Kg6 {[%clk 0:00:30]} 58. Re6+ {[%clk 0:00:03]}  Kh5 {[%clk 0:00:31]} 59. Qh6# {[%clk 0:00:03]} 1-0


[Site "https://www.chess.com"]

[Event "Titled Tuesday Blitz August 15 Late 2023"]
[White "Danishcrown"]
[Black "Buchenau, Frank"]
[BlackFideId "4604350"]
[WhiteElo "2054"]
[BlackElo "2432"]
[Result "0-1"]
[Round "4"]
[TimeControl "180+1"]
[Date "2023.08.15"]
[WhiteClock "0:00:00"]
[BlackClock "0:00:59"]
[Board "144"]

1. e4 {[%clk 0:02:52]}  e6 {[%clk 0:02:59]} 2. d4 {[%clk 0:02:52]}  d5 {[%clk 0:02:58]} 3. e5 {[%clk 0:02:49]}  c5 {[%clk 0:02:57]} 4. c3 {[%clk 0:02:47]}  Qb6 {[%clk 0:02:56]} 5. Nf3 {[%clk 0:02:44]}  Bd7 {[%clk 0:02:55]} 6. Bd3 {[%clk 0:02:34]}  cxd4 {[%clk 0:02:53]} 7. cxd4 {[%clk 0:02:33]}  Nc6 {[%clk 0:02:50]} 8. Bc2 {[%clk 0:01:53]}  Nb4 {[%clk 0:02:48]} 9. O-O {[%clk 0:01:51]}  Nxc2 {[%clk 0:02:46]} 10. Qxc2 {[%clk 0:01:50]}  Ne7 {[%clk 0:02:41]} 11. Nc3 {[%clk 0:01:34]}  Rc8 {[%clk 0:02:39]} 12. Qb3 {[%clk 0:01:21]}  Qxb3 {[%clk 0:02:36]} 13. axb3 {[%clk 0:01:22]}  Nc6 {[%clk 0:02:31]} 14. Be3 {[%clk 0:00:52]}  Be7 {[%clk 0:02:27]} 15. Na4 {[%clk 0:00:48]}  O-O {[%clk 0:02:20]} 16. Rfc1 {[%clk 0:00:47]}  Na5 {[%clk 0:02:12]} 17. Rxc8 {[%clk 0:00:36]}  Rxc8 {[%clk 0:02:11]} 18. b4 {[%clk 0:00:36]}  Bxb4 {[%clk 0:02:07]} 19. Nc5 {[%clk 0:00:34]}  Bc6 {[%clk 0:01:49]} 20. Nd3 {[%clk 0:00:31]}  Nb3 {[%clk 0:01:43]} 21. Rxa7 {[%clk 0:00:28]}  Ba5 {[%clk 0:01:37]} 22. Nc5 {[%clk 0:00:21]}  Bb6 {[%clk 0:01:34]} 23. Ra3 {[%clk 0:00:06]}  Nxc5 {[%clk 0:01:30]} 24. dxc5 {[%clk 0:00:06]}  Bc7 {[%clk 0:01:21]} 25. b4 {[%clk 0:00:05]}  Bb5 {[%clk 0:01:02]} 26. Bd4 {[%clk 0:00:00]}  Kf8 {[%clk 0:00:59]} 0-1


[Site "https://www.chess.com"]

[Event "Titled Tuesday Blitz August 15 Late 2023"]
[White "Burke, Paul"]
[Black "Vafin, Ayrat"]
[WhiteFideId "2605767"]
[BlackFideId "4146530"]
[WhiteElo "1845"]
[BlackElo "2426"]
[Result "0-1"]
[Round "4"]
[TimeControl "180+1"]
[Date "2023.08.15"]
[WhiteClock "0:00:50"]
[BlackClock "0:01:09"]
[Board "146"]

1. e4 {[%clk 0:02:50]}  e5 {[%clk 0:02:59]} 2. Nf3 {[%clk 0:02:50]}  Nf6 {[%clk 0:02:59]} 3. d3 {[%clk 0:02:47]}  Nc6 {[%clk 0:02:58]} 4. Be2 {[%clk 0:02:47]}  d5 {[%clk 0:02:58]} 5. exd5 {[%clk 0:02:46]}  Nxd5 {[%clk 0:02:59]} 6. O-O {[%clk 0:02:46]}  Be7 {[%clk 0:02:59]} 7. Nc3 {[%clk 0:02:45]}  O-O {[%clk 0:02:59]} 8. Nxd5 {[%clk 0:02:33]}  Qxd5 {[%clk 0:02:59]} 9. Nd2 {[%clk 0:02:27]}  Be6 {[%clk 0:02:54]} 10. Bf3 {[%clk 0:02:25]}  Qd7 {[%clk 0:02:54]} 11. Ne4 {[%clk 0:02:23]}  h6 {[%clk 0:02:49]} 12. Ng3 {[%clk 0:02:10]}  f5 {[%clk 0:02:30]} 13. Bxc6 {[%clk 0:02:06]}  Qxc6 {[%clk 0:02:29]} 14. Qe2 {[%clk 0:02:01]}  f4 {[%clk 0:02:16]} 15. Ne4 {[%clk 0:02:00]}  f3 {[%clk 0:02:16]} 16. gxf3 {[%clk 0:01:55]}  Bh3 {[%clk 0:02:15]} 17. Re1 {[%clk 0:01:49]}  Rae8 {[%clk 0:01:38]} 18. Ng3 {[%clk 0:01:33]}  Bc5 {[%clk 0:01:18]} 19. Kh1 {[%clk 0:01:05]}  Rxf3 {[%clk 0:01:10]} 20. Ne4 {[%clk 0:00:50]}  Rxf2 {[%clk 0:01:09]} 0-1


[Site "https://www.chess.com"]